bitfinex/quotes_ETHUSD_20250403
["timestamp","ask_amount","ask_price","bid_price","bid_amount"]
[1743713895594,5.5574,1799.4,1799.3,0.97206369]
[1743713896094,11.11447,1799.5,1799.3,0.97206369]
[1743713896894,5.5574,1799.4,1799.3,0.97206369]
[1743713897796,5.56863804,1799.4,1799.3,0.14206369]
[1743713898198,11.12633804,1799.4,1799.1,0.8333]
[1743713898367,11.1151,1799.4,1799.3,0.14309398]
[1743713898694,11.1151,1799.4,1799.1,0.8333]
[1743713899000,11.1151,1799.4,1799.2,0.14309612]
[1743713899385,11.1151,1799.4,1799.1,0.8333]
[1743713899560,5.5574,1799.4,1799.2,0.14309612]
[1743713899762,5.5574,1799.4,1799.1,0.8333]
[1743713900080,5.5574,1799.4,1799.2,0.14309612]
[1743713900455,5.5574,1799.4,1799.1,0.8333]
[1743713900655,5.5574,1799.4,1799.3,0.14309398]
[1743713900856,5.5574,1799.4,1799.2,0.14309612]
[1743713901055,5.56863804,1799.4,1799.3,0.14309398]
[1743713901470,5.56863804,1799.4,1799.1,0.8333]
[1743713901661,5.56863804,1799.4,1799.3,0.14309398]
[1743713901863,5.56863804,1799.4,1799.2,0.14309612]
[1743713902079,5.5574,1799.4,1799.3,0.14309398]
[1743713902475,11.11507,1799.4,1799.1,0.8333]
[1743713902694,5.5574,1799.4,1799.3,0.14309398]
[1743713902895,11.11507,1799.4,1799.2,0.14309612]
[1743713903204,11.11507,1799.4,1799.3,0.14309398]
[1743713903408,5.5574,1799.4,1799.3,0.14309398]
[1743713903579,5.5574,1799.4,1799.1,0.8333]
[1743713903909,5.55711,1799.5,1799.2,0.14324337]
[1743713904206,5.55711,1799.5,1799.1,0.8333]
[1743713904409,5.55741,1799.4,1799.3,0.1434375]
[1743713904579,5.55741,1799.4,1799.2,0.14343964]
[1743713904909,5.55741,1799.4,1799.3,0.1434375]
[1743713905275,5.55741,1799.4,1799.1,1.53046381]
[1743713905608,5.55741,1799.4,1799.3,0.55]
[1743713905997,5.55741,1799.4,1799.3,0.6934375]
[1743713907905,5.55711,1799.5,1799.3,0.6934375]
[1743713908111,11.12559804,1799.5,1799.3,0.6934375]
[1743713908315,5.5574,1799.4,1799.3,0.6934375]
[1743713912814,5.56863804,1799.4,1799.3,0.1434375]
[1743713913010,6.68121284,1799.4,1799.3,0.1434375]
[1743713913400,5.55802,1799.2,1799.1,0.05]
[1743713913717,5.56925804,1799.2,1799.1,0.05]
[1743713919009,0.01123804,1799.2,1799.1,0.8099]
[1743713919208,0.01123804,1799.2,1799.1,1.3599]
[1743713921047,5.56925804,1799.2,1799.1,1.3599]
[1743713921245,5.56925804,1799.2,1799.1,0.74530661]
[1743713922625,5.56925804,1799.2,1799.1,0.47335817]
[1743713924646,0.01123804,1799.2,1799.1,0.47335817]
[1743713924810,5.56925804,1799.2,1799.1,0.47335817]
[1743713926231,6.68196684,1799.2,1799.1,0.47335817]
[1743713926403,5.56925804,1799.2,1799.1,0.47335817]
[1743713930405,5.55741,1799.4,1799.1,1.02335817]
[1743713930406,5.55752,1799.4,1799.1,1.02335817]
[1743713930602,5.56825804,1799.6,1799.3,0.7777]
[1743713930808,5.55544,1800.1,1799.7,0.55]
[1743713931009,11.11157,1800.0,1799.9,0.55]
[1743713931240,11.11157,1800.0,1799.9,0.69460237]
[1743713931453,12.222727,1800.0,1799.9,0.14460237]
[1743713931666,5.55648,1799.7,1799.6,0.55]
[1743713931960,5.56771804,1799.7,1799.6,0.82805156]
[1743713932258,5.56771804,1799.7,1799.6,0.27805156]
[1743713933359,5.55679,1799.6,1799.5,0.27805156]
[1743713933758,5.56802804,1799.6,1799.5,0.27805156]
[1743713934991,0.01123804,1799.6,1799.5,0.82805156]
[1743713935205,11.11317,1799.7,1799.5,0.82805156]
[1743713935371,5.55648,1799.7,1799.5,0.82805156]
[1743713935707,5.55679,1799.6,1799.5,0.82805156]
[1743713936354,5.55679,1799.6,1799.5,0.94649836]
[1743713937076,5.56802804,1799.6,1799.5,0.94649836]
[1743713939090,5.56802804,1799.6,1799.5,0.6684468]
[1743713943307,5.56802804,1799.6,1799.5,0.94649836]
[1743713944607,5.55679,1799.6,1799.5,0.6684468]
[1743713944809,5.55621,1799.8,1799.5,0.6684468]
[1743713945012,11.11259,1799.8,1799.6,0.55]
[1743713945197,5.55648,1799.7,1799.6,0.55]
[1743713946414,11.12444804,1799.7,1799.5,0.55]
[1743713946628,11.11321,1799.7,1799.5,0.55]
[1743713948281,5.56813804,1799.6,1799.4,0.7589]
[1743713948824,5.5569,1799.6,1799.4,0.7589]
[1743713949021,11.1139,1799.6,1799.4,0.7589]
[1743713949335,5.5574,1799.4,1799.3,0.27805156]
[1743713949797,5.56863804,1799.4,1799.3,0.27805156]
[1743713949997,6.35343804,1799.4,1799.3,0.27805156]
[1743713950936,5.55802,1799.2,1799.1,0.05]
[1743713951286,5.56925804,1799.2,1799.1,0.16835753]
[1743713952130,6.68196884,1799.2,1799.1,0.16835753]
[1743713952315,7.43406884,1799.2,1799.1,0.16835753]
[1743713955629,7.43406884,1799.2,1799.1,0.05]
[1743713956527,13.23206884,1799.2,1799.1,1e-05]
[1743713956763,13.2208308,1799.2,1799.1,1e-05]
[1743713958370,19.2308308,1799.2,1799.1,1e-05]
[1743713961275,23.97959408,1799.2,1799.1,1e-05]
[1743713961579,24.61434491,1799.2,1799.1,1e-05]
[1743713962439,25.16434491,1799.2,1799.1,1e-05]
[1743713962637,25.26434491,1799.2,1799.1,1e-05]
[1743713963265,6.38631,1798.2,1798.1,0.05]
[1743713963445,6.39754804,1798.2,1798.1,0.05]
[1743713965983,5.57234804,1798.2,1798.1,0.877]
[1743713966337,5.57234804,1798.2,1798.1,1.00747422]
[1743713971971,0.01123804,1798.2,1798.1,1.55747422]
[1743713972151,11.13312804,1798.3,1798.1,1.55747422]
[1743713972351,11.12189,1798.3,1798.1,1.55747422]
[1743713972947,5.56111,1798.2,1798.1,1.55747422]
[1743713973958,11.12202,1798.3,1798.1,1.55747422]
[1743713974577,5.56111,1798.2,1798.1,1.55747422]
[1743713976080,5.56111,1798.2,1798.1,1.00747422]
[1743713976477,5.56111,1798.2,1798.1,1.55747422]
[1743713979579,5.56111,1798.2,1798.1,1.00747422]
[1743713979751,5.56111,1798.2,1798.1,1.55747422]
[1743713980183,5.56093,1798.3,1798.1,1.55747422]
[1743713980379,0.01123804,1798.3,1798.1,1.55747422]
[1743713980548,5.56049,1798.4,1798.3,0.55]
[1743713980878,5.56049,1798.4,1798.3,0.68208653]
[1743713981284,5.55994,1798.6,1798.3,1.44418653]
[1743713981463,15.16214231,1798.9,1798.3,1.44418653]
[1743713981464,5.56027,1798.5,1798.3,2.06348151]
[1743713981676,5.56027,1798.5,1798.3,1.51348151]
[1743713981875,5.55993,1798.6,1798.4,0.55]
[1743713982191,11.11933,1798.7,1798.5,0.13208225]
[1743713982357,0.01123804,1798.6,1798.5,0.13208225]
[1743713982758,5.55963,1798.7,1798.6,0.7779]
[1743713982962,5.55963,1798.7,1798.6,1.3279]
[1743713983166,11.11872,1798.8,1798.6,1.45998011]
[1743713983463,5.55934,1798.8,1798.6,1.45998011]
[1743713983668,5.57057804,1798.8,1798.6,1.45998011]
[1743713984492,5.559,1798.9,1798.7,0.55]
[1743713984665,5.57023804,1798.9,1798.8,0.13207583]
[1743713985703,5.57023804,1798.9,1798.6,0.7779]
[1743713985704,5.55957,1798.7,1798.6,1.3279]
[1743713986197,5.55957,1798.7,1798.6,1.6061048]
[1743713986699,0.01123804,1798.8,1798.6,1.6061048]
[1743713986700,5.57052804,1798.8,1798.7,0.55]
[1743713987607,5.55871,1799.0,1798.7,0.55]
[1743713987765,0.01123804,1798.9,1798.7,1.71364433]
[1743713988100,5.56994804,1799.0,1798.8,0.8281]
[1743713988303,0.01123804,1799.0,1798.8,0.8281]
[1743713988479,5.55839,1799.1,1798.9,0.55]
[1743713988881,5.56962804,1799.1,1798.9,0.55]
[1743713989181,11.12812804,1799.1,1798.9,0.55]
[1743713989390,11.11689,1799.1,1798.9,0.55]
[1743713989616,11.117,1799.1,1798.9,0.55]
[1743713989821,5.55839,1799.1,1798.9,0.55]
[1743713990125,5.56962804,1799.1,1798.9,0.55]
[1743713991277,5.55864,1799.0,1798.9,0.55]
[1743713991777,5.56987804,1799.0,1798.9,0.55]
[1743713992948,5.55864,1799.0,1798.9,0.55]
[1743713994021,5.55839,1799.1,1798.9,0.55]
[1743713994189,5.55864,1799.0,1798.9,0.55]
[1743713994612,5.56987804,1799.0,1798.9,0.55]
[1743713995600,11.12873804,1799.0,1798.8,0.8281]
[1743713995815,11.1175,1799.0,1798.8,0.8281]
[1743713996329,11.1175,1799.0,1798.9,0.12744488]
[1743713996527,5.55864,1799.0,1798.9,0.12744488]
[1743713996742,5.56987804,1799.0,1798.9,0.12744488]
[1743713998340,0.01123804,1799.0,1798.9,0.12744488]
[1743713998640,11.11691,1799.1,1798.9,0.12744488]
[1743713998840,5.5584,1799.1,1798.9,0.12744488]
[1743713999011,5.56963804,1799.1,1798.9,0.12744488]
[1743713999643,11.12814804,1799.1,1798.9,0.12744488]
[1743713999844,5.55864,1799.0,1798.9,0.67744488]
[1743714002343,5.5584,1799.1,1798.9,0.67744488]
[1743714002513,5.56963804,1799.1,1798.9,0.67744488]
[1743714003159,11.12813804,1799.1,1798.9,0.67744488]
[1743714003325,5.5584,1799.1,1798.9,0.67744488]
[1743714003527,11.12813804,1799.1,1798.9,0.67744488]
[1743714003745,11.1169,1799.1,1798.9,0.67744488]
[1743714003924,5.5584,1799.1,1798.9,0.67744488]
[1743714004336,5.56897804,1799.3,1799.1,0.55]
[1743714004539,5.56897804,1799.3,1799.2,0.7605]
[1743714004942,0.01123804,1799.3,1799.2,0.7605]
[1743714005156,11.12623804,1799.4,1799.2,0.7605]
[1743714005354,5.55741,1799.4,1799.2,0.7605]
[1743714005729,5.56864804,1799.4,1799.2,0.7605]
[1743714006466,5.56864804,1799.4,1799.2,1.508466]
[1743714006855,11.12625804,1799.4,1799.2,1.508466]
[1743714007054,5.55771,1799.3,1799.2,1.3105]
[1743714007378,5.55864,1799.0,1798.9,0.12744488]
[1743714007537,5.56987804,1799.0,1798.9,0.12744488]
[1743714009369,6.38997804,1799.0,1798.9,0.12744488]
[1743714009670,7.58482184,1799.0,1798.9,0.12744488]
[1743714011776,6.38997804,1799.0,1798.9,0.12744488]
[1743714012414,5.56987804,1799.0,1798.9,0.12744488]
[1743714012861,0.01123804,1799.0,1798.9,0.12744488]
[1743714013062,5.56969804,1799.1,1798.9,0.12744488]
[1743714013774,5.55864,1799.0,1798.9,0.12744488]
[1743714014174,5.56987804,1799.0,1798.9,0.12744488]
[1743714014776,5.55846,1799.1,1798.9,0.12744488]
[1743714015506,5.55864,1799.0,1798.9,0.12744488]
[1743714015991,6.68158804,1799.0,1798.9,0.12744488]
[1743714017697,5.55967,1798.7,1798.6,0.55]
[1743714017894,11.11808,1798.9,1798.6,0.55]
[1743714018195,5.55875,1799.0,1798.7,1.3081]
[1743714018397,5.55875,1799.0,1798.8,0.55]
[1743714018556,5.55895,1798.9,1798.8,0.55]
[1743714018754,5.55942,1798.8,1798.6,0.55]
[1743714019167,5.55957,1798.7,1798.6,0.55]
[1743714019375,5.57080804,1798.7,1798.6,0.55]
[1743714021200,11.11897,1798.8,1798.6,0.55]
[1743714021793,5.55942,1798.8,1798.6,0.55]
[1743714021994,5.57065804,1798.8,1798.6,0.55]
[1743714022295,0.01123804,1798.8,1798.7,6.38567]
[1743714022497,5.5583,1799.2,1798.8,0.8045]
[1743714022694,5.5583,1799.2,1798.8,6.1955]
[1743714022895,5.55781,1799.3,1799.0,0.55]
[1743714023191,0.01123804,1799.2,1799.0,0.55]
[1743714024263,5.55743,1799.4,1799.1,6.36282]
[1743714024493,5.56866804,1799.4,1799.2,0.55]
[1743714025617,0.01123804,1799.3,1799.2,0.55]
[1743714026172,5.56894804,1799.3,1799.2,0.55]
[1743714026385,5.55771,1799.3,1799.2,0.55]
[1743714026975,5.56894804,1799.3,1799.2,0.55]
[1743714028400,5.56894804,1799.3,1799.2,0.66413891]
[1743714029590,5.55771,1799.3,1799.2,0.66413891]
[1743714029789,5.56894804,1799.3,1799.2,0.66413891]
[1743714031674,11.11441,1799.5,1799.2,0.66413891]
[1743714031879,0.01123804,1799.4,1799.2,1.3668158]
[1743714032194,5.55771,1799.3,1799.2,0.11413891]
[1743714032364,5.55811,1799.2,1798.9,9.7091]
[1743714032561,5.56934804,1799.2,1798.9,9.7091]
[1743714032797,5.56934804,1799.2,1799.0,0.11375155]
[1743714034004,11.12754804,1799.2,1799.0,0.11375155]
[1743714034205,5.55811,1799.2,1799.0,0.11375155]
[1743714034430,5.56934804,1799.2,1799.0,0.11375155]
[1743714034911,11.12755804,1799.2,1799.0,0.11375155]
[1743714035217,6.33083,1799.1,1799.0,0.11375155]
[1743714035407,5.55926,1798.8,1798.7,0.03033482]
[1743714035582,5.57049804,1798.8,1798.7,0.03033482]
[1743714035922,11.12993804,1798.8,1798.5,0.797]
[1743714036106,0.01123804,1798.7,1798.5,0.797]
[1743714036989,0.01123804,1798.7,1798.6,0.55]
[1743714037189,5.57080804,1798.7,1798.6,0.55]
[1743714037821,5.56002,1798.6,1798.4,0.55]
[1743714038038,11.12008,1798.6,1798.4,0.55]
[1743714038217,5.56002,1798.6,1798.4,0.55]
[1743714038419,5.55961,1798.7,1798.4,0.55]
[1743714038590,5.57084804,1798.7,1798.4,6.78571348]
[1743714038791,11.13058804,1798.7,1798.4,1.22523348]
[1743714038990,11.11935,1798.7,1798.4,1.22523348]
[1743714039625,5.55994,1798.6,1798.4,0.55]
[1743714040625,5.57117804,1798.6,1798.4,0.55]
[1743714041028,5.55994,1798.6,1798.4,0.55]
[1743714042327,5.55961,1798.7,1798.4,0.55]
[1743714042328,5.55961,1798.7,1798.4,6.11048]
[1743714042528,5.57084804,1798.7,1798.4,6.11048]
[1743714042822,5.56018,1798.5,1798.1,3.84803482]
[1743714043057,5.5608,1798.3,1798.2,0.55]
[1743714043210,5.56111,1798.2,1798.1,0.08033482]
[1743714043397,5.57234804,1798.2,1798.1,0.08033482]
[1743714044129,5.57234804,1798.2,1798.1,0.05]
[1743714044923,6.76803284,1798.2,1798.1,0.05]
[1743714046327,5.57234804,1798.2,1798.1,0.05]
[1743714048525,6.37704804,1798.2,1798.1,0.05]
[1743714050334,6.7994304,1798.2,1798.1,0.05]
[1743714050637,6.7994304,1798.2,1798.1,1e-05]
[1743714050838,12.8094304,1798.2,1798.1,1e-05]
[1743714051009,15.64919173,1798.2,1798.1,1e-05]
[1743714051617,18.64919173,1798.2,1798.1,1e-05]
[1743714053946,39.50867473,1798.2,1798.1,1e-05]
[1743714054142,38.65058973,1798.2,1798.1,1e-05]
[1743714054519,18.64919173,1798.2,1798.1,1e-05]
[1743714054936,22.73926373,1798.2,1798.1,1e-05]
[1743714056310,22.27363473,1798.2,1798.1,1e-05]
[1743714056842,21.61063473,1798.2,1798.1,1e-05]
[1743714059748,15.64919173,1798.2,1798.1,1e-05]
[1743714060053,5.56111,1798.2,1798.1,1e-05]
[1743714060349,5.57234804,1798.2,1798.1,0.11658493]
[1743714060647,5.57234804,1798.2,1798.1,1e-05]
[1743714062155,0.01123804,1798.2,1798.1,0.11658165]
[1743714063752,5.57234804,1798.2,1798.1,0.11658165]
[1743714064514,5.5608,1798.3,1798.1,0.11658165]
[1743714065953,5.56111,1798.2,1798.1,0.11658165]
[1743714067755,6.673301,1798.2,1798.1,0.11658165]
[1743714068071,5.56111,1798.2,1798.1,0.11658165]
[1743714072349,5.56,1798.6,1798.3,5.56071]
[1743714072553,5.56,1798.6,1798.2,6.3134]
[1743714072554,11.12017,1798.6,1798.2,6.3134]
[1743714072860,5.56,1798.6,1798.3,0.10412881]
[1743714073081,5.56,1798.6,1798.3,0.74587869]
[1743714073389,5.56033,1798.5,1798.3,0.74587869]
[1743714073564,5.56033,1798.5,1798.3,0.10412881]
[1743714073963,5.56049,1798.4,1798.3,0.10412881]
[1743714077699,11.12835328,1798.4,1798.3,2.44e-06]
[1743714077852,5.56111,1798.2,1798.1,1e-05]
[1743714078051,6.673315,1798.2,1798.1,1e-05]
[1743714079858,5.56111,1798.2,1798.1,1e-05]
[1743714082686,5.55895,1798.9,1798.1,0.82011]
[1743714082865,5.56052,1798.4,1798.2,0.55]
[1743714083067,5.56052,1798.4,1798.3,0.8201]
[1743714086456,5.56097,1798.3,1798.2,0.7696]
[1743714086659,11.12199,1798.3,1798.2,0.7696]
[1743714087458,11.12199,1798.3,1798.2,0.94347595]
[1743714089811,11.12116,1798.4,1798.2,0.94347595]
[1743714090100,5.5608,1798.3,1798.2,0.94347595]
[1743714090400,5.5603,1798.5,1798.2,0.94347595]
[1743714090599,11.12076,1798.5,1798.2,1.64894655]
[1743714091179,5.5608,1798.3,1798.2,0.94347595]
[1743714093809,5.5608,1798.3,1798.2,0.17387595]
[1743714094014,6.3518,1798.3,1798.2,0.17387595]
[1743714094497,5.56111,1798.2,1798.1,1e-05]
[1743714094701,6.752401,1798.2,1798.1,1e-05]
[1743714099276,15.25316428,1798.2,1798.1,1e-05]
[1743714100707,28.00720928,1798.2,1798.1,1e-05]
[1743714100880,25.41715028,1798.2,1798.1,1e-05]
[1743714102791,31.42715028,1798.2,1798.1,1e-05]
[1743714107217,30.22596428,1798.2,1798.1,1e-05]
[1743714110042,36.07196428,1798.2,1798.1,1e-05]
[1743714110359,30.22596428,1798.2,1798.1,1e-05]
[1743714112650,31.41071511,1798.2,1798.1,1e-05]
[1743714113151,37.26571511,1798.2,1798.1,1e-05]
[1743714114069,31.41071511,1798.2,1798.1,1e-05]
[1743714115033,5.5639,1797.3,1797.2,0.7852]
[1743714115229,5.5651,1797.0,1796.9,0.7852]
[1743714115455,11.1302,1797.0,1796.9,0.95914998]
[1743714115834,11.1302,1797.0,1796.9,0.17394998]
[1743714116739,11.885,1797.0,1796.9,0.17394998]
[1743714117058,18.96256228,1797.0,1796.9,0.17394998]
[1743714117462,5.56575,1796.7,1796.6,0.7852]
[1743714118433,5.56637,1796.5,1796.4,0.8317]
[1743714121149,5.56422,1797.2,1796.8,5.56534]
[1743714121353,5.56422,1797.2,1796.9,0.7804]
[1743714121553,5.56461,1797.1,1796.9,0.7804]
[1743714121952,5.56461,1797.1,1797.0,0.7804]
[1743714124573,5.56403,1797.3,1797.0,0.7804]
[1743714124736,5.56421,1797.2,1797.0,0.7804]
[1743714124940,5.56452,1797.1,1797.0,0.7804]
[1743714125241,11.12794,1797.3,1797.0,0.7804]
[1743714125842,5.56393,1797.3,1797.0,1.414938]
[1743714126873,5.56431,1797.2,1797.0,1.414938]
[1743714127874,5.56393,1797.3,1797.0,1.414938]
[1743714128085,11.128,1797.3,1797.1,0.7546]
[1743714128263,5.56393,1797.3,1797.1,0.7546]
[1743714128467,5.56333,1797.5,1797.2,0.7546]
[1743714128668,5.56291,1797.7,1797.4,0.7546]
[1743714128983,11.12505,1797.8,1797.5,0.7546]
[1743714129177,5.56209,1797.9,1797.6,0.7546]
[1743714129499,5.56209,1797.9,1797.7,0.7546]
[1743714129850,5.56173,1798.0,1797.7,6.31724]
[1743714130147,1.191291,1798.2,1797.8,5.56215]
[1743714130148,5.56116,1798.2,1797.8,5.56215]
[1743714130453,5.56116,1798.2,1797.9,0.7546]
[1743714130656,5.56084,1798.3,1798.0,0.7546]
[1743714130857,11.12128,1798.4,1798.0,6.31629]
[1743714131056,5.56054,1798.4,1798.1,0.7546]
[1743714131867,5.56054,1798.4,1798.1,6.31601]
[1743714132062,5.56024,1798.5,1798.2,0.7546]
[1743714132449,5.56024,1798.5,1798.3,0.7916]
[1743714133084,5.55948,1798.8,1798.3,0.7916]
[1743714133336,11.11813,1798.9,1798.5,6.35158]
[1743714133507,5.5593,1798.8,1798.5,6.35158]
[1743714133801,5.55895,1798.9,1798.6,0.7916]
[1743714133802,5.55905,1798.9,1798.6,0.7916]
[1743714133975,5.55865,1799.0,1798.6,6.35141]
[1743714134181,5.55906,1798.9,1798.6,0.7916]
[1743714135705,3.0,1799.2,1798.6,0.7916]
[1743714135856,5.56018,1798.5,1798.4,0.7916]
[1743714136552,5.56061,1798.4,1798.2,6.1663]
[1743714137865,5.55992,1798.6,1798.3,0.7585]
[1743714138654,5.56021,1798.5,1798.3,0.7585]
[1743714138886,5.56049,1798.4,1798.3,0.7585]
[1743714139785,5.56021,1798.5,1798.3,0.7585]
[1743714140784,11.12065,1798.5,1798.3,0.7585]
[1743714141279,5.56021,1798.5,1798.3,0.7585]
[1743714141579,11.11996,1798.6,1798.3,0.7585]
[1743714141785,11.11996,1798.6,1798.3,1.92966]
[1743714141951,5.56021,1798.5,1798.3,1.92966]
[1743714142981,5.55905,1798.9,1798.5,6.38046]
[1743714143164,5.55905,1798.9,1798.5,11.9405]
[1743714143365,11.11819,1798.9,1798.5,6.38046]
[1743714143986,5.55928,1798.8,1798.5,6.38046]
[1743714144287,5.55905,1798.9,1798.5,6.38068]
[1743714144493,5.55905,1798.9,1798.3,6.4338055]
[1743714144494,5.56033,1798.5,1798.3,0.8205]
[1743714144859,11.12071,1798.5,1798.3,0.8205]
[1743714145061,5.56049,1798.4,1798.3,0.8205]
[1743714149505,5.56033,1798.5,1798.3,0.8205]
[1743714150114,5.55988,1798.6,1798.5,0.8242]
[1743714150597,5.56018,1798.5,1798.2,0.55]
[1743714150895,5.56062,1798.4,1798.2,0.55]
[1743714153500,5.56018,1798.5,1798.2,0.55]
[1743714153702,11.12054,1798.5,1798.2,0.55]
[1743714154278,5.5605,1798.4,1798.2,0.55]
[1743714155095,5.55976,1798.7,1798.4,0.55]
[1743714155264,0.7942,1798.9,1798.4,0.55]
[1743714155265,5.55992,1798.6,1798.4,0.55]
[1743714155470,11.11995,1798.6,1798.4,0.55]
[1743714155878,5.5608,1798.3,1798.2,0.93774413]
[1743714156082,5.5608,1798.3,1798.2,0.17384413]
[1743714156412,6.11688,1798.3,1798.2,0.17384413]
[1743714156703,6.91108,1798.3,1798.2,0.17384413]
[1743714157071,5.56173,1798.0,1797.9,0.17384413]
[1743714160170,5.56107,1798.3,1797.9,6.28578413]
[1743714160505,5.5612,1798.2,1798.1,0.55]
[1743714161981,5.5612,1798.2,1798.1,0.72384413]
[1743714162371,0.8324,1799.0,1798.1,6.16945481]
[1743714162577,5.55895,1798.9,1798.6,6.37278]
[1743714162887,5.55895,1798.9,1798.7,0.637278]
[1743714163087,5.55926,1798.8,1798.7,0.637278]
[1743714163288,5.55926,1798.8,1798.6,0.813]
[1743714163811,5.55926,1798.8,1798.7,0.17384413]
[1743714164582,6.39166,1798.8,1798.7,0.17384413]
[1743714164977,5.55987,1798.6,1798.5,4.13e-06]
[1743714165184,6.39227,1798.6,1798.5,4.13e-06]
[1743714165402,8.127867,1798.6,1798.5,4.13e-06]
[1743714166690,5.56141,1798.2,1798.0,0.813]
[1743714166885,11.12282,1798.2,1798.0,0.813]
[1743714167090,5.56142,1798.1,1798.0,0.813]
[1743714168600,5.5614,1798.2,1798.0,0.813]
[1743714169196,11.12273,1798.2,1798.0,0.813]
[1743714169402,5.56142,1798.1,1798.0,0.813]
[1743714171025,0.8324,1798.6,1798.1,0.55]
[1743714171329,5.5608,1798.3,1798.0,1.3297]
[1743714171535,5.5608,1798.3,1798.0,6.8914]
[1743714172033,11.12131,1798.4,1798.0,6.94693178]
[1743714172187,5.56052,1798.4,1798.0,6.94693178]
[1743714172724,5.56052,1798.4,1798.0,6.94692178]
[1743714173024,11.12057,1798.5,1798.3,0.794]
[1743714173233,5.56023,1798.5,1798.3,0.794]
[1743714173935,5.56049,1798.4,1798.3,0.794]
[1743714174291,5.56023,1798.5,1798.3,0.794]
[1743714174937,11.12058,1798.5,1798.3,0.794]
[1743714175142,5.56049,1798.4,1798.3,0.794]
[1743714175447,5.55905,1798.9,1798.5,5.5599]
[1743714175946,5.5593,1798.8,1798.5,5.5599]
[1743714176099,5.5593,1798.8,1798.5,6.25029]
[1743714178132,5.55935,1798.8,1798.5,6.25029]
[1743714178338,5.55935,1798.8,1798.6,0.17382564]
[1743714178773,11.11877,1798.8,1798.6,0.17382564]
[1743714179522,5.55935,1798.8,1798.5,6.25052]
[1743714179865,5.55898,1798.9,1798.5,6.25048]
[1743714180167,5.55926,1798.8,1798.5,6.25048]
[1743714180362,5.55898,1798.9,1798.5,6.30603618]
[1743714180523,5.55898,1798.9,1798.6,5.55984]
[1743714181038,11.11811,1798.9,1798.7,0.7758]
[1743714181358,5.55926,1798.8,1798.7,0.7758]
[1743714181726,5.55898,1798.9,1798.7,0.7758]
[1743714182958,5.55842,1799.1,1798.7,1.409365]
[1743714183161,5.55842,1799.1,1798.8,5.55915]
[1743714183324,5.55842,1799.1,1798.8,11.11831]
[1743714183766,5.55842,1799.1,1798.8,16.0405961]
[1743714184369,5.55842,1799.1,1798.8,10.4813961]
[1743714184963,5.55842,1799.1,1798.8,11.67047221]
[1743714187035,5.55842,1799.1,1798.8,11.49665513]
[1743714188576,11.11626,1799.2,1798.9,0.55]
[1743714188742,11.11626,1799.2,1799.0,0.7952]
[1743714189248,5.55833,1799.1,1799.0,0.7952]
[1743714190276,5.55808,1799.2,1799.0,0.7952]
[1743714190651,11.11627,1799.2,1799.0,0.7952]
[1743714191050,5.55833,1799.1,1799.0,0.7952]
[1743714191749,11.11635,1799.2,1799.0,0.7952]
[1743714191945,5.55833,1799.1,1799.0,0.7952]
[1743714192662,11.11627,1799.2,1799.0,0.7952]
[1743714192980,11.11626,1799.2,1799.0,0.7952]
[1743714193183,5.55773,1799.3,1799.0,0.7952]
[1743714193387,5.55804,1799.2,1799.0,1.485613]
[1743714193590,11.1157,1799.3,1799.0,1.485613]
[1743714193786,11.11507,1799.4,1799.0,11.79261202]
[1743714193960,5.55745,1799.4,1799.1,0.55]
[1743714194757,5.55774,1799.3,1799.1,0.55]
[1743714194958,5.55745,1799.4,1799.1,1.7842572]
[1743714195571,11.11507,1799.4,1799.1,1.7842572]
[1743714195987,5.55777,1799.3,1799.1,1.7842572]
[1743714199189,5.55743,1799.4,1799.1,7.3425472]
[1743714199390,5.55722,1799.5,1799.2,4.74846902]
[1743714199566,11.11449,1799.5,1799.3,0.4748469]
[1743714200196,11.1145,1799.5,1799.3,0.4748469]
[1743714201189,6.34281,1799.6,1799.0,1.485613]
[1743714201390,5.55833,1799.1,1799.0,6.7322]
[1743714201894,5.55824,1799.2,1799.0,6.7322]
[1743714202694,11.11561,1799.3,1799.0,6.7322]
[1743714202889,11.11561,1799.3,1799.1,0.17377768]
[1743714203066,11.11578,1799.3,1799.1,0.17377768]
[1743714203259,5.55802,1799.2,1799.1,0.17377768]
[1743714206119,5.55745,1799.4,1799.1,6.91759545]
[1743714206616,11.11502,1799.4,1799.2,0.55]
[1743714207930,5.55653,1799.7,1799.1,0.17377768]
[1743714207931,6.35772,1799.2,1799.1,0.17377768]
[1743714208219,6.35772,1799.2,1798.8,5.58036902]
[1743714208220,5.55849,1799.1,1798.9,0.55]
[1743714208590,11.11696,1799.1,1798.9,0.55]
[1743714208791,11.11696,1799.1,1798.9,1.7189599]
[1743714208992,5.55847,1799.1,1798.9,1.7189599]
[1743714209834,5.55847,1799.1,1799.0,0.1737941]
[1743714218145,5.55811,1799.2,1799.0,0.9858941]
[1743714218459,11.11627,1799.2,1799.0,0.9858941]
[1743714218650,5.55833,1799.1,1799.0,0.1737941]
[1743714218939,6.37543,1799.1,1799.0,0.1737941]
[1743714219533,5.55985,1798.7,1798.5,0.1737941]
[1743714220113,5.55987,1798.6,1798.5,0.1737941]
[1743714222558,5.56058,1798.4,1798.2,0.1737941]
[1743714222859,5.5608,1798.3,1798.2,5.35801351]
[1743714223026,5.5608,1798.3,1798.2,0.7237941]
[1743714224260,5.56058,1798.4,1798.2,0.7237941]
[1743714227858,5.56058,1798.4,1798.2,0.55]
[1743714228356,11.12127,1798.4,1798.2,0.55]
[1743714229151,5.56058,1798.4,1798.2,0.55]
[1743714230164,5.56058,1798.4,1798.2,1.25931803]
[1743714232960,11.12123,1798.4,1798.2,1.25931803]
[1743714233359,5.56058,1798.4,1798.2,1.25931803]
[1743714233559,11.12124,1798.4,1798.2,1.25931803]
[1743714233733,5.56058,1798.4,1798.2,1.25931803]
[1743714233932,11.12122,1798.4,1798.2,1.25931803]